{"text_format":"1","workbook":"xlsx","n_sheets":3,"sheets":["GLOBAL","S09","Feuil3"],"not_rendered":{"charts":0,"images":0,"macros":1,"external_links":0,"defined_names":42,"comments":0,"pivot_tables":0},"unopened":[],"bounds":{"document_bytes":16777216,"sheet_cells":100000,"rows_first":2000,"rows_last":500,"rows_between":2000,"halvings":0,"cell_chars":16384,"cell_head_chars":4096},"cells_cut":0,"cells_raw":0,"read":"whole","date_system":"1900"}

{"sheet":"GLOBAL","index":0,"n_rows":26,"n_cols":13,"rows_kept":26,"cut":false,"hidden":false,"merged":[[14,1,25,1],[14,5,25,5],[1,0,1,10],[2,1,2,2],[2,3,2,4],[2,5,2,6],[2,7,2,8],[2,9,2,10]]}
[]
["LAMPE Marie-Hélène",null,null,null,null,null,null,null,null,null,null,null,{"$f":"VLOOKUP(A2,CCIAUX2,2,FALSE)","v":"LAMPE Marie-Hélène1"}]
[null,"Lundi",null,"Mardi",null,"Mercredi",null,"Jeudi",null,"Vendredi"]
["8h00",{"$f":"VLOOKUP($A$2,GLOBAL1,2,FALSE)","v":0},{"$f":"VLOOKUP($M$2,GLOBAL1,2,FALSE)","v":0},{"$f":"VLOOKUP($A$2,GLOBAL1,25,FALSE)","v":0},{"$f":"VLOOKUP($M$2,GLOBAL1,25,FALSE)","v":0},{"$f":"VLOOKUP($A$2,GLOBAL1,48,FALSE)","v":0},{"$f":"VLOOKUP($M$2,GLOBAL1,48,FALSE)","v":0},{"$f":"VLOOKUP($A$2,GLOBAL1,71,FALSE)","v":0},{"$f":"VLOOKUP($M$2,GLOBAL1,71,FALSE)","v":0},{"$f":"VLOOKUP($A$2,GLOBAL1,94,FALSE)","v":0},{"$f":"VLOOKUP($M$2,GLOBAL1,94,FALSE)","v":0}]
["8h30",{"$f":"VLOOKUP($A$2,GLOBAL1,3,FALSE)","v":0},{"$f":"VLOOKUP($M$2,GLOBAL1,3,FALSE)","v":0},{"$f":"VLOOKUP($A$2,GLOBAL1,26,FALSE)","v":0},{"$f":"VLOOKUP($M$2,GLOBAL1,26,FALSE)","v":0},{"$f":"VLOOKUP($A$2,GLOBAL1,49,FALSE)","v":0},{"$f":"VLOOKUP($M$2,GLOBAL1,49,FALSE)","v":0},{"$f":"VLOOKUP($A$2,GLOBAL1,72,FALSE)","v":0},{"$f":"VLOOKUP($M$2,GLOBAL1,72,FALSE)","v":0},{"$f":"VLOOKUP($A$2,GLOBAL1,95,FALSE)","v":0},{"$f":"VLOOKUP($M$2,GLOBAL1,95,FALSE)","v":0}]
["9h00",{"$f":"VLOOKUP($A$2,GLOBAL1,4,FALSE)","v":0},{"$f":"VLOOKUP($M$2,GLOBAL1,4,FALSE)","v":0},{"$f":"VLOOKUP($A$2,GLOBAL1,27,FALSE)","v":0},{"$f":"VLOOKUP($M$2,GLOBAL1,27,FALSE)","v":0},{"$f":"VLOOKUP($A$2,GLOBAL1,50,FALSE)","v":0},{"$f":"VLOOKUP($M$2,GLOBAL1,50,FALSE)","v":0},{"$f":"VLOOKUP($A$2,GLOBAL1,73,FALSE)","v":0},{"$f":"VLOOKUP($M$2,GLOBAL1,73,FALSE)","v":0},{"$f":"VLOOKUP($A$2,GLOBAL1,96,FALSE)","v":0},{"$f":"VLOOKUP($M$2,GLOBAL1,96,FALSE)","v":0}]
["9h30",{"$f":"VLOOKUP($A$2,GLOBAL1,5,FALSE)","v":0},{"$f":"VLOOKUP($M$2,GLOBAL1,5,FALSE)","v":0},{"$f":"VLOOKUP($A$2,GLOBAL1,28,FALSE)","v":0},{"$f":"VLOOKUP($M$2,GLOBAL1,28,FALSE)","v":0},{"$f":"VLOOKUP($A$2,GLOBAL1,51,FALSE)","v":0},{"$f":"VLOOKUP($M$2,GLOBAL1,51,FALSE)","v":0},{"$f":"VLOOKUP($A$2,GLOBAL1,74,FALSE)","v":0},{"$f":"VLOOKUP($M$2,GLOBAL1,74,FALSE)","v":0},{"$f":"VLOOKUP($A$2,GLOBAL1,97,FALSE)","v":0},{"$f":"VLOOKUP($M$2,GLOBAL1,97,FALSE)","v":0}]
["10h00",{"$f":"VLOOKUP($A$2,GLOBAL1,6,FALSE)","v":0},{"$f":"VLOOKUP($M$2,GLOBAL1,6,FALSE)","v":0},{"$f":"VLOOKUP($A$2,GLOBAL1,29,FALSE)","v":0},{"$f":"VLOOKUP($M$2,GLOBAL1,29,FALSE)","v":0},{"$f":"VLOOKUP($A$2,GLOBAL1,52,FALSE)","v":0},{"$f":"VLOOKUP($M$2,GLOBAL1,52,FALSE)","v":0},{"$f":"VLOOKUP($A$2,GLOBAL1,75,FALSE)","v":0},{"$f":"VLOOKUP($M$2,GLOBAL1,75,FALSE)","v":0},{"$f":"VLOOKUP($A$2,GLOBAL1,98,FALSE)","v":0},{"$f":"VLOOKUP($M$2,GLOBAL1,98,FALSE)","v":0}]
["10h30",{"$f":"VLOOKUP($A$2,GLOBAL1,7,FALSE)","v":0},{"$f":"VLOOKUP($M$2,GLOBAL1,7,FALSE)","v":0},{"$f":"VLOOKUP($A$2,GLOBAL1,30,FALSE)","v":0},{"$f":"VLOOKUP($M$2,GLOBAL1,30,FALSE)","v":0},{"$f":"VLOOKUP($A$2,GLOBAL1,53,FALSE)","v":0},{"$f":"VLOOKUP($M$2,GLOBAL1,53,FALSE)","v":0},{"$f":"VLOOKUP($A$2,GLOBAL1,76,FALSE)","v":0},{"$f":"VLOOKUP($M$2,GLOBAL1,76,FALSE)","v":0},{"$f":"VLOOKUP($A$2,GLOBAL1,99,FALSE)","v":0},{"$f":"VLOOKUP($M$2,GLOBAL1,99,FALSE)","v":0}]
["11h00",{"$f":"VLOOKUP($A$2,GLOBAL1,8,FALSE)","v":0},{"$f":"VLOOKUP($M$2,GLOBAL1,8,FALSE)","v":0},{"$f":"VLOOKUP($A$2,GLOBAL1,31,FALSE)","v":0},{"$f":"VLOOKUP($M$2,GLOBAL1,31,FALSE)","v":0},{"$f":"VLOOKUP($A$2,GLOBAL1,54,FALSE)","v":0},{"$f":"VLOOKUP($M$2,GLOBAL1,54,FALSE)","v":0},{"$f":"VLOOKUP($A$2,GLOBAL1,77,FALSE)","v":0},{"$f":"VLOOKUP($M$2,GLOBAL1,77,FALSE)","v":0},{"$f":"VLOOKUP($A$2,GLOBAL1,100,FALSE)","v":0},{"$f":"VLOOKUP($M$2,GLOBAL1,100,FALSE)","v":0}]
["11h30",{"$f":"VLOOKUP($A$2,GLOBAL1,9,FALSE)","v":0},{"$f":"VLOOKUP($M$2,GLOBAL1,9,FALSE)","v":0},{"$f":"VLOOKUP($A$2,GLOBAL1,32,FALSE)","v":0},{"$f":"VLOOKUP($M$2,GLOBAL1,32,FALSE)","v":0},{"$f":"VLOOKUP($A$2,GLOBAL1,55,FALSE)","v":0},{"$f":"VLOOKUP($M$2,GLOBAL1,55,FALSE)","v":0},{"$f":"VLOOKUP($A$2,GLOBAL1,78,FALSE)","v":0},{"$f":"VLOOKUP($M$2,GLOBAL1,78,FALSE)","v":0},{"$f":"VLOOKUP($A$2,GLOBAL1,101,FALSE)","v":0},{"$f":"VLOOKUP($M$2,GLOBAL1,101,FALSE)","v":0}]
["12h00",{"$f":"VLOOKUP($A$2,GLOBAL1,10,FALSE)","v":0},{"$f":"VLOOKUP($M$2,GLOBAL1,10,FALSE)","v":0},{"$f":"VLOOKUP($A$2,GLOBAL1,33,FALSE)","v":0},{"$f":"VLOOKUP($M$2,GLOBAL1,33,FALSE)","v":0},{"$f":"VLOOKUP($A$2,GLOBAL1,56,FALSE)","v":0},{"$f":"VLOOKUP($M$2,GLOBAL1,56,FALSE)","v":0},{"$f":"VLOOKUP($A$2,GLOBAL1,79,FALSE)","v":0},{"$f":"VLOOKUP($M$2,GLOBAL1,79,FALSE)","v":0},{"$f":"VLOOKUP($A$2,GLOBAL1,102,FALSE)","v":0},{"$f":"VLOOKUP($M$2,GLOBAL1,102,FALSE)","v":0}]
["12h30",{"$f":"VLOOKUP($A$2,GLOBAL1,11,FALSE)","v":0},{"$f":"VLOOKUP($M$2,GLOBAL1,11,FALSE)","v":0},{"$f":"VLOOKUP($A$2,GLOBAL1,34,FALSE)","v":0},{"$f":"VLOOKUP($M$2,GLOBAL1,34,FALSE)","v":0},{"$f":"VLOOKUP($A$2,GLOBAL1,57,FALSE)","v":0},{"$f":"VLOOKUP($M$2,GLOBAL1,57,FALSE)","v":0},{"$f":"VLOOKUP($A$2,GLOBAL1,80,FALSE)","v":0},{"$f":"VLOOKUP($M$2,GLOBAL1,80,FALSE)","v":0},{"$f":"VLOOKUP($A$2,GLOBAL1,103,FALSE)","v":0},{"$f":"VLOOKUP($M$2,GLOBAL1,103,FALSE)","v":0}]
["13h00",{"$f":"VLOOKUP($A$2,GLOBAL1,12,FALSE)","v":0},{"$f":"VLOOKUP($M$2,GLOBAL1,12,FALSE)","v":0},{"$f":"VLOOKUP($A$2,GLOBAL1,35,FALSE)","v":0},{"$f":"VLOOKUP($M$2,GLOBAL1,35,FALSE)","v":0},{"$f":"VLOOKUP($A$2,GLOBAL1,58,FALSE)","v":0},{"$f":"VLOOKUP($M$2,GLOBAL1,58,FALSE)","v":0},{"$f":"VLOOKUP($A$2,GLOBAL1,81,FALSE)","v":0},{"$f":"VLOOKUP($M$2,GLOBAL1,81,FALSE)","v":0},{"$f":"VLOOKUP($A$2,GLOBAL1,104,FALSE)","v":0},{"$f":"VLOOKUP($M$2,GLOBAL1,104,FALSE)","v":0}]
["13h30","Prospection salon de l'Agriculture",{"$f":"VLOOKUP($M$2,GLOBAL1,13,FALSE)","v":0},{"$f":"VLOOKUP($A$2,GLOBAL1,36,FALSE)","v":0},{"$f":"VLOOKUP($M$2,GLOBAL1,36,FALSE)","v":0},"4,5/5ème ",{"$f":"VLOOKUP($M$2,GLOBAL1,59,FALSE)","v":0},{"$f":"VLOOKUP($A$2,GLOBAL1,82,FALSE)","v":0},{"$f":"VLOOKUP($M$2,GLOBAL1,82,FALSE)","v":0},{"$f":"VLOOKUP($A$2,GLOBAL1,105,FALSE)","v":0},{"$f":"VLOOKUP($M$2,GLOBAL1,105,FALSE)","v":0}]
["14h00",null,{"$f":"VLOOKUP($M$2,GLOBAL1,14,FALSE)","v":0},{"$f":"VLOOKUP($A$2,GLOBAL1,37,FALSE)","v":0},{"$f":"VLOOKUP($M$2,GLOBAL1,37,FALSE)","v":0},null,{"$f":"VLOOKUP($M$2,GLOBAL1,60,FALSE)","v":0},{"$f":"VLOOKUP($A$2,GLOBAL1,83,FALSE)","v":0},{"$f":"VLOOKUP($M$2,GLOBAL1,83,FALSE)","v":0},{"$f":"VLOOKUP($A$2,GLOBAL1,106,FALSE)","v":0},{"$f":"VLOOKUP($M$2,GLOBAL1,106,FALSE)","v":0}]
["14h30",null,{"$f":"VLOOKUP($M$2,GLOBAL1,15,FALSE)","v":0},{"$f":"VLOOKUP($A$2,GLOBAL1,38,FALSE)","v":0},{"$f":"VLOOKUP($M$2,GLOBAL1,38,FALSE)","v":0},null,{"$f":"VLOOKUP($M$2,GLOBAL1,61,FALSE)","v":0},{"$f":"VLOOKUP($A$2,GLOBAL1,84,FALSE)","v":0},{"$f":"VLOOKUP($M$2,GLOBAL1,84,FALSE)","v":0},{"$f":"VLOOKUP($A$2,GLOBAL1,107,FALSE)","v":0},{"$f":"VLOOKUP($M$2,GLOBAL1,107,FALSE)","v":0}]
["15h00",null,{"$f":"VLOOKUP($M$2,GLOBAL1,16,FALSE)","v":0},{"$f":"VLOOKUP($A$2,GLOBAL1,39,FALSE)","v":0},{"$f":"VLOOKUP($M$2,GLOBAL1,39,FALSE)","v":0},null,{"$f":"VLOOKUP($M$2,GLOBAL1,62,FALSE)","v":0},{"$f":"VLOOKUP($A$2,GLOBAL1,85,FALSE)","v":0},{"$f":"VLOOKUP($M$2,GLOBAL1,85,FALSE)","v":0},{"$f":"VLOOKUP($A$2,GLOBAL1,108,FALSE)","v":0},{"$f":"VLOOKUP($M$2,GLOBAL1,108,FALSE)","v":0}]
["15h30",null,{"$f":"VLOOKUP($M$2,GLOBAL1,17,FALSE)","v":0},{"$f":"VLOOKUP($A$2,GLOBAL1,40,FALSE)","v":0},{"$f":"VLOOKUP($M$2,GLOBAL1,40,FALSE)","v":0},null,{"$f":"VLOOKUP($M$2,GLOBAL1,63,FALSE)","v":0},{"$f":"VLOOKUP($A$2,GLOBAL1,86,FALSE)","v":0},{"$f":"VLOOKUP($M$2,GLOBAL1,86,FALSE)","v":0},{"$f":"VLOOKUP($A$2,GLOBAL1,109,FALSE)","v":0},{"$f":"VLOOKUP($M$2,GLOBAL1,109,FALSE)","v":0}]
["16h00",null,{"$f":"VLOOKUP($M$2,GLOBAL1,18,FALSE)","v":0},{"$f":"VLOOKUP($A$2,GLOBAL1,41,FALSE)","v":0},{"$f":"VLOOKUP($M$2,GLOBAL1,41,FALSE)","v":0},null,{"$f":"VLOOKUP($M$2,GLOBAL1,64,FALSE)","v":0},{"$f":"VLOOKUP($A$2,GLOBAL1,87,FALSE)","v":0},{"$f":"VLOOKUP($M$2,GLOBAL1,87,FALSE)","v":0},{"$f":"VLOOKUP($A$2,GLOBAL1,110,FALSE)","v":0},{"$f":"VLOOKUP($M$2,GLOBAL1,110,FALSE)","v":0}]
["16h30",null,{"$f":"VLOOKUP($M$2,GLOBAL1,19,FALSE)","v":0},{"$f":"VLOOKUP($A$2,GLOBAL1,42,FALSE)","v":0},{"$f":"VLOOKUP($M$2,GLOBAL1,42,FALSE)","v":0},null,{"$f":"VLOOKUP($M$2,GLOBAL1,65,FALSE)","v":0},{"$f":"VLOOKUP($A$2,GLOBAL1,88,FALSE)","v":0},{"$f":"VLOOKUP($M$2,GLOBAL1,88,FALSE)","v":0},{"$f":"VLOOKUP($A$2,GLOBAL1,111,FALSE)","v":0},{"$f":"VLOOKUP($M$2,GLOBAL1,111,FALSE)","v":0}]
["17h00",null,{"$f":"VLOOKUP($M$2,GLOBAL1,20,FALSE)","v":0},{"$f":"VLOOKUP($A$2,GLOBAL1,43,FALSE)","v":0},{"$f":"VLOOKUP($M$2,GLOBAL1,43,FALSE)","v":0},null,{"$f":"VLOOKUP($M$2,GLOBAL1,66,FALSE)","v":0},{"$f":"VLOOKUP($A$2,GLOBAL1,89,FALSE)","v":0},{"$f":"VLOOKUP($M$2,GLOBAL1,89,FALSE)","v":0},{"$f":"VLOOKUP($A$2,GLOBAL1,112,FALSE)","v":0},{"$f":"VLOOKUP($M$2,GLOBAL1,112,FALSE)","v":0}]
["17h30",null,{"$f":"VLOOKUP($M$2,GLOBAL1,21,FALSE)","v":0},{"$f":"VLOOKUP($A$2,GLOBAL1,44,FALSE)","v":0},{"$f":"VLOOKUP($M$2,GLOBAL1,44,FALSE)","v":0},null,{"$f":"VLOOKUP($M$2,GLOBAL1,67,FALSE)","v":0},{"$f":"VLOOKUP($A$2,GLOBAL1,90,FALSE)","v":0},{"$f":"VLOOKUP($M$2,GLOBAL1,90,FALSE)","v":0},{"$f":"VLOOKUP($A$2,GLOBAL1,113,FALSE)","v":0},{"$f":"VLOOKUP($M$2,GLOBAL1,113,FALSE)","v":0}]
["18h00",null,{"$f":"VLOOKUP($M$2,GLOBAL1,22,FALSE)","v":0},{"$f":"VLOOKUP($A$2,GLOBAL1,45,FALSE)","v":0},{"$f":"VLOOKUP($M$2,GLOBAL1,45,FALSE)","v":0},null,{"$f":"VLOOKUP($M$2,GLOBAL1,68,FALSE)","v":0},{"$f":"VLOOKUP($A$2,GLOBAL1,91,FALSE)","v":0},{"$f":"VLOOKUP($M$2,GLOBAL1,91,FALSE)","v":0},{"$f":"VLOOKUP($A$2,GLOBAL1,114,FALSE)","v":0},{"$f":"VLOOKUP($M$2,GLOBAL1,114,FALSE)","v":0}]
["18h30",null,{"$f":"VLOOKUP($M$2,GLOBAL1,23,FALSE)","v":0},{"$f":"VLOOKUP($A$2,GLOBAL1,46,FALSE)","v":0},{"$f":"VLOOKUP($M$2,GLOBAL1,46,FALSE)","v":0},null,{"$f":"VLOOKUP($M$2,GLOBAL1,69,FALSE)","v":0},{"$f":"VLOOKUP($A$2,GLOBAL1,92,FALSE)","v":0},{"$f":"VLOOKUP($M$2,GLOBAL1,92,FALSE)","v":0},{"$f":"VLOOKUP($A$2,GLOBAL1,115,FALSE)","v":0},{"$f":"VLOOKUP($M$2,GLOBAL1,115,FALSE)","v":0}]
["19h00",null,{"$f":"VLOOKUP($M$2,GLOBAL1,24,FALSE)","v":0},{"$f":"VLOOKUP($A$2,GLOBAL1,47,FALSE)","v":0},{"$f":"VLOOKUP($M$2,GLOBAL1,47,FALSE)","v":0},null,{"$f":"VLOOKUP($M$2,GLOBAL1,70,FALSE)","v":0},{"$f":"VLOOKUP($A$2,GLOBAL1,93,FALSE)","v":0},{"$f":"VLOOKUP($M$2,GLOBAL1,93,FALSE)","v":0},{"$f":"VLOOKUP($A$2,GLOBAL1,116,FALSE)","v":0},{"$f":"VLOOKUP($M$2,GLOBAL1,116,FALSE)","v":0}]

{"sheet":"S09","index":1,"n_rows":82,"n_cols":116,"rows_kept":82,"cut":false,"hidden":false,"merged":[[0,1,0,23],[0,24,0,46],[0,47,0,69],[0,70,0,92],[0,93,0,115],[54,35,55,46],[54,81,55,92],[74,93,75,115],[72,93,73,115],[18,47,19,69],[24,47,25,57],[52,24,52,46],[71,37,71,39],[42,47,43,69],[44,47,45,69],[48,47,49,69],[64,47,65,69],[54,47,55,69],[26,93,27,115],[26,78,27,92],[28,12,29,23],[28,58,29,69],[36,47,37,69]]}
[null,"LUNDI",null,null,null,null,null,null,null,null,null,null,null,null,null,null,null,null,null,null,null,null,null,null,"MARDI",null,null,null,null,null,null,null,null,null,null,null,null,null,null,null,null,null,null,null,null,null,null,"MERCREDI",null,null,null,null,null,null,null,null,null,null,null,null,null,null,null,null,null,null,null,null,null,null,"JEUDI",null,null,null,null,null,null,null,null,null,null,null,null,null,null,null,null,null,null,null,null,null,null,"VENDREDI"]
["COMMERCIAUX","8h","8h30","9h","9h30","10h","10h30","11h","11h30","12h","12h30","13h","13h30","14h","14h30","15h","15h30","16h","16h30","17h","17h30","18h","18h30","19h","8h","8h30","9h","9h30","10h","10h30","11h","11h30","12h","12h30","13h","13h30","14h","14h30","15h","15h30","16h","16h30","17h","17h30","18h","18h30","19h","8h","8h30","9h","9h30","10h","10h30","11h","11h30","12h","12h30","13h","13h30","14h","14h30","15h","15h30","16h","16h30","17h","17h30","18h","18h30","19h","8h","8h30","9h","9h30","10h","10h30","11h","11h30","12h","12h30","13h","13h30","14h","14h30","15h","15h30","16h","16h30","17h","17h30","18h","18h30","19h","8h","8h30","9h","9h30","10h","10h30","11h","11h30","12h","12h30","13h","13h30","14h","14h30","15h","15h30","16h","16h30","17h","17h30","18h","18h30","19h"]
["ASSARAF Rébecca"]
["ASSARAF Rébecca1"]
["BARTMANN Alexandra"]
["BARTMANN Alexandra1"]
["BENZOUGAR Yasmine"]
["BENZOUGAR Yasmine1"]
["BERTIN Chloé"]
["BERTIN Chloé1"]
["BURQUIER Mathilde"]
["BURQUIER Mathilde1"]
["CHAPLAULT Marie-Christine"]
["CHAPLAULT Marie-Christine1"]
["DUBERVILLE Anne-Laurence"]
["DUBERVILLE Anne-Laurence1"]
["DURAND Térésa"]
["DURAND Térésa1"]
["FLAUX Morgane",null,null,null,null,null,null,null,null,null,null,null,null,null,null,null,null,null,null,null,null,null,null,null,null,null,null,null,null,null,null,null,null,null,null,null,null,null,null,null,null,null,null,null,null,null,null,"4/5ème "]
["FLAUX Morgane1"]
["FRANCHI Laetitia"]
["FRANCHI Laetitia1"]
["IZSAK Diane"]
["IZSAK Diane1"]
["JULITTE Laure",null,null,null,null,null,null,null,null,null,null,null,null,null,null,null,null,null,null,null,null,null,null,null,null,null,null,null,null,null,null,null,null,null,null,null,null,null,null,null,null,null,null,null,null,null,null,"4,5/5ème "]
["JULITTE Laure1"]
["KAMA Brice",null,null,null,null,null,null,null,null,null,null,null,null,null,null,null,null,null,null,null,null,null,null,null,null,null,null,null,null,null,null,null,null,null,null,null,null,null,null,null,null,null,null,null,null,null,null,null,null,null,null,null,null,null,null,null,null,null,null,null,null,null,null,null,null,null,null,null,null,null,null,null,null,null,null,null,null,null,"SAA MARSEILLE",null,null,null,null,null,null,null,null,null,null,null,null,null,null,"SAA MARSEILLE"]
["KAMA Brice1"]
["LAMPE Marie-Hélène",null,null,null,null,null,null,null,null,null,null,null,"Prospection salon de l'Agriculture",null,null,null,null,null,null,null,null,null,null,null,null,null,null,null,null,null,null,null,null,null,null,null,null,null,null,null,null,null,null,null,null,null,null,null,null,null,null,null,null,null,null,null,null,null,"4,5/5ème "]
["LAMPE Marie-Hélène1"]
["LEVY Brigitte"]
["LEVY Brigitte1"]
["MARTIN-DUPONT Elise"]
["MARTIN-DUPONT Elise1"]
["MEVEL Cedric"]
["MEVEL Cedric1"]
["MONTEL Caroline",null,null,null,null,null,null,null,null,null,null,null,null,null,null,null,null,null,null,null,null,null,null,null,null,null,null,null,null,null,null,null,null,null,null,null,null,null,null,null,null,null,null,null,null,null,null,"4/5ème "]
["MONTEL Caroline1"]
["NEVEU Mégane"]
["NEVEU Mégane1"]
["POUYAUD Mélissa"]
["POUYAUD Mélissa1"]
["ROMANO Stéphanie",null,null,null,null,null,null,null,null,null,null,null,null,null,null,null,null,null,null,null,null,null,null,null,null,null,null,null,null,null,null,null,null,null,null,null,null,null,null,null,null,null,null,null,null,null,null,"4/5ème "]
["ROMANO Stéphanie1"]
["SAKKAT Donia",null,null,null,null,null,null,null,null,null,null,null,null,null,null,null,null,null,null,null,null,null,null,null,null,null,null,null,null,null,null,null,null,null,null,null,null,null,null,null,null,null,null,null,null,null,null,"4/5ème "]
["SAKKAT Donia1"]
["SUREAU Virginie"]
["SUREAU Virginie1"]
["TISSIER Béatrice",null,null,null,null,null,null,null,null,null,null,null,null,null,null,null,null,null,null,null,null,null,null,null,null,null,null,null,null,null,null,null,null,null,null,null,null,null,null,null,null,null,null,null,null,null,null,"4/5ème "]
["TISSIER Béatrice1"]
["TOUFFAIT Marie"]
["TOUFFAIT Marie1"]
["TROEIRA Emna",null,null,null,null,null,null,null,null,null,null,null,null,null,null,null,null,null,null,null,null,null,null,null,"Déplacement GRENOBLE"]
["TROEIRA Emna1"]
["VAN CAMPENHOUT Karine",null,null,null,null,null,null,null,null,null,null,null,null,null,null,null,null,null,null,null,null,null,null,null,null,null,null,null,null,null,null,null,null,null,null,"3/5ème ",null,null,null,null,null,null,null,null,null,null,null,"3/5ème ",null,null,null,null,null,null,null,null,null,null,null,null,null,null,null,null,null,null,null,null,null,null,null,null,null,null,null,null,null,null,null,null,null,"3/5ème "]
["VAN CAMPENHOUT Karine1"]
["RENNES"]
["FLEURIEL Yoann"]
["FLEURIEL Yoann1"]
["FLEURY Valentine "]
["FLEURY Valentine1"]
["MALLIPOUDY Charles "]
["MALLIPOUDY Charles1"]
["LYON"]
["CHAPUILLIOT-MICARD Sophie ",null,null,null,null,null,null,null,null,null,null,null,null,null,null,null,null,null,null,null,null,null,null,null,null,null,null,null,null,null,null,null,null,null,null,null,null,null,null,null,null,null,null,null,null,null,null,"4/5ème "]
["CHAPUILLIOT-MICARD Sophie1"]
["FAYOLLE Caroline "]
["FAYOLLE Caroline1"]
["HAMEL Yan "]
["HAMEL Yan1"]
["JUSCHKA Vanessa "]
["JUSCHKA Vanessa1",null,null,null,null,null,null,null,null,null,null,null,null,null,null,null,null,null,null,null,null,null,null,null,null,null,null,null,null,null,null,null,null,null,null,null,null,"ARIES"]
["LAROCHE Anastasia ",null,null,null,null,null,null,null,null,null,null,null,null,null,null,null,null,null,null,null,null,null,null,null,null,null,null,null,null,null,null,null,null,null,null,null,null,null,null,null,null,null,null,null,null,null,null,null,null,null,null,null,null,null,null,null,null,null,null,null,null,null,null,null,null,null,null,null,null,null,null,null,null,null,null,null,null,null,null,null,null,null,null,null,null,null,null,null,null,null,null,null,null,"SAA MARSEILLE"]
["LAROCHE Anastasia1"]
["OBIOLS Aurélie",null,null,null,null,null,null,null,null,null,null,null,null,null,null,null,null,null,null,null,null,null,null,null,null,null,null,null,null,null,null,null,null,null,null,null,null,null,null,null,null,null,null,null,null,null,null,null,null,null,null,null,null,null,null,null,null,null,null,null,null,null,null,null,null,null,null,null,null,null,null,null,null,null,null,null,null,null,null,null,null,null,null,null,null,null,null,null,null,null,null,null,null,"SAA MARSEILLE"]
["OBIOLS Aurélie1"]
[]
[null,null,"4/5ème : FLAUX Morgane, MONTEL Caroline, ROMANO Stéphanie, SAKKAT Donia, TISSIER Béatrice et CHAPUILLIOT Sophie."]
[null,null,"4,5/5ème : JULITTE Laure et LAMPE Marie-Hélène"]
[null,null,"3/5ème : VAN CAMPENHOUT Karine"]
[]
[null,null,"Présence SAA Marseille"]

{"sheet":"Feuil3","index":2,"n_rows":38,"n_cols":2,"rows_kept":38,"cut":false,"hidden":false,"merged":[]}
[]
["COMMERCIAUX"]
["ASSARAF Rébecca","ASSARAF Rébecca1"]
["BARTMANN Alexandra","BARTMANN Alexandra1"]
["BENZOUGAR Yasmine","BENZOUGAR Yasmine1"]
["BERTIN Chloé","BERTIN Chloé1"]
["BURQUIER Mathilde","BURQUIER Mathilde1"]
["CHAPLAULT Marie-Christine","CHAPLAULT Marie-Christine1"]
["CHAPUILLIOT-MICARD Sophie","CHAPUILLIOT-MICARD Sophie1"]
["DUBERVILLE Anne-Laurence","DUBERVILLE Anne-Laurence1"]
["DURAND Térésa","DURAND Térésa1"]
["FAYOLLE Caroline","FAYOLLE Caroline1"]
["FLAUX Morgane","FLAUX Morgane1"]
["FLEURIEL Yoann","FLEURIEL Yoann1"]
["FLEURY Valentine","FLEURY Valentine1"]
["FRANCHI Laetitia","FRANCHI Laetitia1"]
["HAMEL Yan","HAMEL Yan1"]
["IZSAK Diane","IZSAK Diane1"]
["JULITTE Laure","JULITTE Laure1"]
["JUSCHKA Vanessa","JUSCHKA Vanessa1"]
["KAMA Brice","KAMA Brice1"]
["LAMPE Marie-Hélène","LAMPE Marie-Hélène1"]
["LAROCHE Anastasia","LAROCHE Anastasia1"]
["LEVY Brigitte","LEVY Brigitte1"]
["MALLIPOUDY Charles","MALLIPOUDY Charles1"]
["MARTIN-DUPONT Elise","MARTIN-DUPONT Elise1"]
["MEVEL Cedric","MEVEL Cedric1"]
["MONTEL Caroline","MONTEL Caroline1"]
["NEVEU Mégane","NEVEU Mégane1"]
["OBIOLS Aurélie","OBIOLS Aurélie1"]
["POUYAUD Mélissa","POUYAUD Mélissa1"]
["ROMANO Stéphanie","ROMANO Stéphanie1"]
["SAKKAT Donia","SAKKAT Donia1"]
["SUREAU Virginie","SUREAU Virginie1"]
["TISSIER Béatrice","TISSIER Béatrice1"]
["TOUFFAIT Marie","TOUFFAIT Marie1"]
["TROEIRA Emna","TROEIRA Emna1"]
["VAN CAMPENHOUT Karine","VAN CAMPENHOUT Karine1"]